fUST/lending_fUST_20250630
["ID","MTS","AMOUNT","RATE_DAILY","PERIOD"]
[368584487,1751217040314,-460.0,0.00018643,2]
[368584489,1751217040324,-460.0,0.00018643,2]
[368584491,1751217040333,-460.0,0.00018643,2]
[368584493,1751217040343,-460.0,0.00018643,2]
[368584495,1751217040352,-460.0,0.00018643,2]
[368584497,1751217040361,-460.0,0.00018643,2]
[368584499,1751217040370,-460.0,0.00018643,2]
[368584501,1751217040379,-460.0,0.00018643,2]
[368584503,1751217040388,-588.27,0.00018643,2]
[368584505,1751217040398,-460.0,0.00018643,2]
[368584507,1751217040407,-460.0,0.00018643,2]
[368584509,1751217040416,-460.0,0.00018643,2]
[368584511,1751217040426,-1047.34,0.00018643,2]
[368584513,1751217040435,-460.0,0.00018644,2]
[368584515,1751217040444,-460.0,0.00018644,2]
[368584517,1751217040455,-409.80859155,0.00018644,2]
[368584519,1751217040464,-460.0,0.00018644,2]
[368584521,1751217040474,-460.0,0.00018644,2]
[368584523,1751217040483,-540.86,0.00018644,2]
[368584525,1751217040492,-460.0,0.00018644,2]
[368584527,1751217040502,-2759.24,0.00018644,2]
[368584529,1751217040511,-460.0,0.00018644,2]
[368584531,1751217040520,-902.98,0.00018644,2]
[368584533,1751217040529,-632.28,0.00018644,2]
[368584535,1751217040538,-460.0,0.00018644,2]
[368584537,1751217040548,-513.78,0.00018644,2]
[368584539,1751217040557,-610.19,0.00018644,2]
[368584541,1751217040566,-1064.43,0.00018644,2]
[368584543,1751217040575,-460.0,0.00018645,2]
[368584545,1751217040585,-973.55,0.00018645,2]
[368584547,1751217040594,-460.0,0.00018645,2]
[368584549,1751217040604,-460.0,0.00018645,2]
[368584551,1751217040613,-2074.91,0.00018645,2]
[368584553,1751217040622,-460.0,0.00018645,2]
[368584555,1751217040632,-781.6,0.00018645,2]
[368584557,1751217040641,-1114.44,0.00018645,2]
[368584559,1751217040650,-663.87,0.00018645,2]
[368584561,1751217040659,-3615.32,0.00018645,2]
[368584563,1751217040668,-753.48,0.00018645,2]
[368584565,1751217040677,-460.0,0.00018646,2]
[368584567,1751217040686,-402.55127568,0.00018646,2]
[368584569,1751217040696,-460.0,0.00018646,2]
[368584571,1751217040706,-460.0,0.00018646,2]
[368584573,1751217040715,-460.0,0.00018646,2]
[368584575,1751217040725,-460.0,0.00018646,2]
[368584577,1751217040734,-504.71,0.00018646,2]
[368584580,1751217040742,-460.0,0.00018646,2]
[368584582,1751217040752,-506.6,0.00018646,2]
[368584584,1751217040761,-460.0,0.00018646,2]
[368584586,1751217040771,-460.0,0.00018646,2]
[368584588,1751217040781,-460.0,0.00018646,2]
[368584590,1751217040790,-460.0,0.00018646,2]
[368584592,1751217040799,-460.0,0.00018646,2]
[368584594,1751217040808,-310.17950622,0.00018646,2]
[368584596,1751217040817,-460.0,0.00018661,2]
[368584598,1751217040826,-1092.7,0.00018661,2]
[368584600,1751217040836,-460.0,0.00018661,2]
[368584602,1751217040845,-460.0,0.00018661,2]
[368584604,1751217040854,-460.0,0.00018662,2]
[368584606,1751217040863,-579.58,0.00018662,2]
[368584608,1751217040872,-460.0,0.00018662,2]
[368584610,1751217040882,-906.17,0.00018664,2]
[368584612,1751217040891,-460.0,0.00018664,2]
[368584614,1751217040901,-2123.55120506,0.00018726,2]
[368584616,1751217040910,-3965.97106981,0.000189,2]
[368584618,1751217040919,-460.0,0.00018916,2]
[368584620,1751217040931,-460.0,0.00018916,2]
[368584621,1751217040940,-460.0,0.00018916,2]
[368584624,1751217040950,-1453.38,0.00018916,2]
[368584626,1751217040969,-460.0,0.00018917,2]
[368584628,1751217040979,-460.0,0.00018917,2]
[368584630,1751217040989,-2141.24,0.00018917,2]
[368584632,1751217040998,-494.7,0.00018917,2]
[368584634,1751217041008,-460.0,0.00018917,2]
[368584636,1751217041017,-2351.68,0.00018917,2]
[368584638,1751217041028,-470.09,0.00018917,2]
[368584639,1751217041041,-468.63,0.00018917,2]
[368584642,1751217041050,-460.0,0.00018917,2]
[368584644,1751217041060,-460.0,0.00018917,2]
[368584646,1751217041069,-460.0,0.00018917,2]
[368584647,1751217041078,-460.0,0.00018917,2]
[368584649,1751217041087,-844.86,0.00018917,2]
[368584651,1751217041096,-460.0,0.00018917,2]
[368584653,1751217041106,-2091.43,0.00018917,2]
[368584655,1751217041115,-460.0,0.00018917,2]
[368584657,1751217041125,-460.0,0.00018917,2]
[368584659,1751217041134,-2461.02,0.00018917,2]
[368584661,1751217041144,-2527.06,0.00018917,2]
[368584663,1751217041153,-460.0,0.00018917,2]
[368584665,1751217041162,-1239.26,0.00018917,2]
[368584668,1751217041172,-460.0,0.00018917,2]
[368584669,1751217041184,-460.0,0.00018917,2]
[368584671,1751217041195,-834.91,0.00018917,2]
[368584673,1751217041205,-460.0,0.00018917,2]
[368584675,1751217041214,-460.0,0.00018917,2]
[368584677,1751217041225,-460.0,0.00018917,2]
[368584679,1751217041234,-460.0,0.00018917,2]
[368584681,1751217041243,-460.0,0.00018917,2]
[368584683,1751217041262,-460.0,0.00018917,2]
[368584685,1751217041273,-460.0,0.00018917,2]
[368584687,1751217041285,-460.0,0.00018917,2]
[368584689,1751217041294,-460.0,0.00018917,2]
[368584691,1751217041304,-588.27,0.00018917,2]
[368584693,1751217041314,-566.37629393,0.00018917,2]
[368584695,1751217041324,-460.0,0.00018917,2]
[368584697,1751217041334,-460.0,0.00018917,2]
[368584698,1751217041342,-1047.34,0.00018917,2]
[368584699,1751217041352,-460.0,0.00018918,2]
[368584700,1751217041361,-460.0,0.00018918,2]
[368584701,1751217041370,-460.0,0.00018918,2]
[368584702,1751217041380,-540.86,0.00018918,2]
[368584703,1751217041391,-460.0,0.00018918,2]
[368584704,1751217041400,-2759.24,0.00018918,2]
[368584705,1751217041409,-460.0,0.00018918,2]
[368584706,1751217041418,-902.98,0.00018918,2]
[368584707,1751217041427,-632.28,0.00018918,2]
[368584708,1751217041436,-460.0,0.00018918,2]
[368584709,1751217041445,-513.78,0.00018918,2]
[368584710,1751217041454,-610.19,0.00018918,2]
[368584711,1751217041463,-1064.43,0.00018918,2]
[368584712,1751217041472,-460.0,0.00018919,2]
[368584713,1751217041481,-973.55,0.00018919,2]
[368584714,1751217041490,-460.0,0.00018919,2]
[368584715,1751217041499,-460.0,0.00018919,2]
[368584716,1751217041508,-2074.91,0.00018919,2]
[368584717,1751217041517,-460.0,0.00018919,2]
[368584718,1751217041526,-781.6,0.00018919,2]
[368584719,1751217041535,-1114.44,0.00018919,2]
[368584720,1751217041545,-663.87,0.00018919,2]
[368584721,1751217041554,-3615.32,0.00018919,2]
[368584722,1751217041563,-753.48,0.00018919,2]
[368584724,1751217041573,-460.0,0.0001892,2]
[368584725,1751217041582,-460.0,0.0001892,2]
[368584726,1751217041593,-460.0,0.0001892,2]
[368584728,1751217041602,-460.0,0.0001892,2]
[368584730,1751217041611,-460.0,0.0001892,2]
[368584732,1751217041620,-504.71,0.0001892,2]
[368584734,1751217041629,-506.6,0.0001892,2]
[368584736,1751217041639,-460.0,0.0001892,2]
[368584738,1751217041648,-460.0,0.0001892,2]
[368584740,1751217041657,-460.0,0.0001892,2]
[368584742,1751217041667,-460.0,0.0001892,2]
[368584744,1751217041676,-460.0,0.0001892,2]
[368584746,1751217041685,-460.0,0.00018935,2]
[368584748,1751217041695,-1092.7,0.00018935,2]
[368584750,1751217041704,-460.0,0.00018935,2]
[368584752,1751217041713,-460.0,0.00018935,2]
[368584754,1751217041722,-579.58,0.00018936,2]
[368584756,1751217041732,-460.0,0.00018936,2]
[368584758,1751217041742,-906.17,0.00018938,2]
[368584760,1751217041751,-379.00249616,0.00018988,2]
[368584762,1751217041760,-500.0,0.00018988,2]
[368584764,1751217041770,-500.0,0.00018988,2]
[368584766,1751217041779,-500.54053299,0.00019081,2]
[368584768,1751217041789,-500.0,0.00019081,2]
[368584770,1751217041799,-500.0,0.00019081,2]
[368584772,1751217041809,-500.0,0.00019081,2]
[368584774,1751217041818,-500.0,0.00019081,2]
[368584776,1751217041827,-500.0,0.00019081,2]
[368584778,1751217041837,-500.0,0.00019081,2]
[368584780,1751217041847,-500.0,0.00019081,2]
[368584782,1751217041856,-504.28252098,0.00019081,2]
[368584784,1751217041866,-500.0,0.00019081,2]
[368584786,1751217041876,-500.0,0.00019081,2]
[368584788,1751217041885,-500.0,0.00019081,2]
[368584790,1751217041894,-500.0,0.00019081,2]
[368584792,1751217041903,-500.0,0.00019085,2]
[368584794,1751217041912,-500.0,0.00019087,2]
[368584796,1751217041921,-500.0,0.00019106,2]
[368584798,1751217041930,-500.0,0.00019106,2]
[368584800,1751217041940,-500.0,0.00019106,2]
[368584802,1751217041949,-206.08708153,0.00019106,2]
[368584804,1751217041958,-254.7172477,0.00019106,2]
[368584806,1751217041967,-500.0,0.00019106,2]
[368584808,1751217041977,-648.69635197,0.00019106,2]
[368584810,1751217041986,-500.0,0.00019106,2]
[368584812,1751217041996,-500.0,0.00019106,2]
[368584814,1751217042006,-239.26144024,0.00019106,2]
[368584816,1751217042015,-3965.97106955,0.00019107,2]
[368584818,1751217042024,-500.0,0.00019107,2]
[368584820,1751217042033,-500.0,0.00019108,2]
[368584822,1751217042042,-234.40001497,0.00019108,2]
[368584824,1751217042051,-500.0,0.00019108,2]
[368584826,1751217042062,-151.0,0.00019115,2]
[368584827,1751217042071,-417.84420019,0.00019162,2]
[368584829,1751217042081,-478.899777,0.00019178,2]
[368584830,1751217042089,-460.0,0.0001919,2]
[368584832,1751217042099,-460.0,0.0001919,2]
[368584834,1751217042108,-460.0,0.0001919,2]
[368584836,1751217042118,-1453.38,0.0001919,2]
[368584838,1751217042127,-260.23287212,0.00019191,2]
[368584840,1751217042137,-460.0,0.00019191,2]
[368584842,1751217042147,-2141.24,0.00019191,2]
[368584844,1751217042156,-494.7,0.00019191,2]
[368584846,1751217042165,-460.0,0.00019191,2]
[368584848,1751217042176,-2351.68,0.00019191,2]
[368584849,1751217042189,-470.09,0.00019191,2]
[368584851,1751217042199,-468.63,0.00019191,2]
[368584853,1751217042208,-460.0,0.00019191,2]
[368584855,1751217042218,-460.0,0.00019191,2]
[368584857,1751217042227,-460.0,0.00019191,2]
[368584859,1751217042237,-460.0,0.00019191,2]
[368584861,1751217042246,-844.86,0.00019191,2]
[368584863,1751217042258,-2091.43,0.00019191,2]
[368584865,1751217042267,-460.0,0.00019191,2]
[368584867,1751217042276,-460.0,0.00019191,2]
[368584869,1751217042285,-2461.02,0.00019191,2]
[368584871,1751217042294,-2527.06,0.00019191,2]
[368584873,1751217042303,-460.0,0.00019191,2]
[368584875,1751217042312,-1239.26,0.00019191,2]
[368584877,1751217042321,-460.0,0.00019191,2]
[368584879,1751217042331,-460.0,0.00019191,2]
[368584881,1751217042342,-834.91,0.00019191,2]
[368584883,1751217042351,-460.0,0.00019191,2]
[368584884,1751217042361,-460.0,0.00019191,2]
[368584886,1751217042370,-460.0,0.00019191,2]
[368584888,1751217042379,-460.0,0.00019191,2]
[368584890,1751217042389,-477.24930591,0.00019191,2]
[368584892,1751217042398,-460.0,0.00019191,2]
[368584894,1751217042407,-460.0,0.00019191,2]
[368584907,1751217042416,-460.0,0.00019191,2]
[368584911,1751217042550,-460.0,0.00019191,2]
[368584913,1751217042560,-588.27,0.00019191,2]
[368584915,1751217042570,-460.0,0.00019191,2]
[368584917,1751217042579,-460.0,0.00019191,2]
[368584919,1751217042588,-1047.34,0.00019191,2]
[368584921,1751217042597,-460.0,0.00019192,2]
[368584923,1751217042606,-460.0,0.00019192,2]
[368584924,1751217042615,-460.0,0.00019192,2]
[368584926,1751217042625,-540.86,0.00019192,2]
[368584929,1751217042635,-460.0,0.00019192,2]
[368584930,1751217042645,-2759.24,0.00019192,2]
[368584932,1751217042654,-460.0,0.00019192,2]
[368584935,1751217042664,-902.98,0.00019192,2]
[368584936,1751217042673,-632.28,0.00019192,2]
[368584938,1751217042682,-460.0,0.00019192,2]
[368584940,1751217042692,-513.78,0.00019192,2]
[368584942,1751217042701,-610.19,0.00019192,2]
[368584944,1751217042710,-1064.43,0.00019192,2]
[368584946,1751217042719,-460.0,0.00019193,2]
[368584948,1751217042728,-973.55,0.00019193,2]
[368584950,1751217042738,-460.0,0.00019193,2]
[368584952,1751217042747,-460.0,0.00019193,2]
[368584954,1751217042756,-2074.91,0.00019193,2]
[368584956,1751217042765,-460.0,0.00019193,2]
[368584958,1751217042774,-781.6,0.00019193,2]
[368584960,1751217042784,-1114.44,0.00019193,2]
[368584962,1751217042793,-663.87,0.00019193,2]
[368584964,1751217042804,-3615.32,0.00019193,2]
[368584966,1751217042813,-753.48,0.00019193,2]
[368584968,1751217042823,-460.0,0.00019194,2]
[368584970,1751217042833,-460.0,0.00019194,2]
[368584972,1751217042843,-460.0,0.00019194,2]
[368584974,1751217042852,-460.0,0.00019194,2]
[368584977,1751217042861,-460.0,0.00019194,2]
[368584980,1751217042872,-504.71,0.00019194,2]
[368584983,1751217042881,-506.6,0.00019194,2]
[368584986,1751217042892,-460.0,0.00019194,2]
[368584989,1751217042901,-460.0,0.00019194,2]
[368584992,1751217042911,-460.0,0.00019194,2]
[368584994,1751217042920,-283.28565185,0.00019194,2]
[368584996,1751217042929,-460.0,0.00019194,2]
[368584998,1751217042938,-460.0,0.00019209,2]
[368585000,1751217042948,-1092.7,0.00019209,2]
[368585002,1751217042958,-460.0,0.00019209,2]
[368585004,1751217042967,-579.58,0.0001921,2]
[368585006,1751217042976,-460.0,0.0001921,2]
[368585009,1751217042985,-906.17,0.00019212,2]
[368585012,1751217042995,-3965.97106955,0.00019314,2]
[368585014,1751217043004,-2219.58730504,0.00019383,2]
[368585016,1751217043014,-837.1293463,0.00019446,2]
[368585018,1751217043023,-160.0,0.00019446,2]
[368585020,1751217043033,-12567.05932091,0.00019446,2]
[368585022,1751217043042,-160.0,0.00019446,2]
[368585024,1751217043051,-160.0,0.00019446,2]
[368585026,1751217043061,-213.82031328,0.00019446,2]
[368585028,1751217043070,-230.30207649,0.00019446,2]
[368585030,1751217043080,-847.31290578,0.00019446,2]
[368585031,1751217043090,-214.97967293,0.00019446,2]
[368585033,1751217043099,-160.0,0.00019446,2]
[368585035,1751217043108,-160.0,0.00019446,2]
[368585037,1751217043119,-160.0,0.00019446,2]
[368585039,1751217043128,-524.48349001,0.00019446,2]
[368585041,1751217043137,-160.0,0.00019447,2]
[368585043,1751217043147,-1000.0,0.00019452,2]
[368585045,1751217043156,-1000.0,0.00019452,2]
[368585047,1751217043165,-1000.0,0.00019452,2]
[368585049,1751217043175,-1000.0,0.00019452,2]
[368585051,1751217043188,-1000.0,0.00019452,2]
[368585053,1751217043197,-1000.0,0.00019452,2]
[368585055,1751217043207,-1000.0,0.00019452,2]
[368585057,1751217043217,-1000.0,0.00019452,2]
[368585059,1751217043226,-1000.0,0.00019452,2]
[368585061,1751217043235,-858.95690601,0.00019452,2]
[368585063,1751217043245,-460.0,0.00019464,2]
[368585065,1751217043257,-460.0,0.00019464,2]
[368585067,1751217043266,-460.0,0.00019464,2]
[368585069,1751217043276,-1453.38,0.00019464,2]
[368585071,1751217043285,-2141.24,0.00019465,2]
[368585073,1751217043294,-494.7,0.00019465,2]
[368585074,1751217043303,-460.0,0.00019465,2]
[368585076,1751217043312,-2351.68,0.00019465,2]
[368585078,1751217043322,-470.09,0.00019465,2]
[368585080,1751217043331,-468.63,0.00019465,2]
[368585082,1751217043340,-460.0,0.00019465,2]
[368585084,1751217043350,-460.0,0.00019465,2]
[368585086,1751217043361,-460.0,0.00019465,2]
[368585088,1751217043371,-844.86,0.00019465,2]
[368585091,1751217043381,-2091.43,0.00019465,2]
[368585093,1751217043391,-460.0,0.00019465,2]
[368585095,1751217043401,-460.0,0.00019465,2]
[368585097,1751217043410,-2461.02,0.00019465,2]
[368585098,1751217043420,-2527.06,0.00019465,2]
[368585101,1751217043430,-460.0,0.00019465,2]
[368585103,1751217043439,-1239.26,0.00019465,2]
[368585104,1751217043449,-460.0,0.00019465,2]
[368585107,1751217043460,-460.0,0.00019465,2]
[368585108,1751217043470,-834.91,0.00019465,2]
[368585110,1751217043480,-460.0,0.00019465,2]
[368585112,1751217043489,-460.0,0.00019465,2]
[368585115,1751217043498,-460.0,0.00019465,2]
[368585117,1751217043508,-460.0,0.00019465,2]
[368585120,1751217043518,-460.0,0.00019465,2]
[368585122,1751217043527,-460.0,0.00019465,2]
[368585124,1751217043536,-460.0,0.00019465,2]
[368585126,1751217043545,-460.0,0.00019465,2]
[368585128,1751217043555,-588.27,0.00019465,2]
[368585130,1751217043564,-460.0,0.00019465,2]
[368585132,1751217043573,-460.0,0.00019465,2]
[368585134,1751217043583,-460.0,0.00019466,2]
[368585137,1751217043591,-258.86,0.00019466,2]
[368585140,1751217043601,-460.0,0.00019466,2]
[368585143,1751217043610,-540.86,0.00019466,2]
[368585146,1751217043620,-460.0,0.00019466,2]
[368585149,1751217043629,-2759.24,0.00019466,2]
[368585152,1751217043638,-460.0,0.00019466,2]
[368585155,1751217043648,-902.98,0.00019466,2]
[368585158,1751217043657,-632.28,0.00019466,2]
[368585161,1751217043668,-460.0,0.00019466,2]
[368585164,1751217043678,-513.78,0.00019466,2]
[368585166,1751217043687,-610.19,0.00019466,2]
[368585168,1751217043696,-1064.43,0.00019466,2]
[368585170,1751217043706,-460.0,0.00019467,2]
[368585172,1751217043715,-973.55,0.00019467,2]
[368585174,1751217043724,-460.0,0.00019467,2]
[368585176,1751217043734,-460.0,0.00019467,2]
[368585178,1751217043743,-2074.91,0.00019467,2]
[368585180,1751217043753,-460.0,0.00019467,2]
[368585182,1751217043763,-781.6,0.00019467,2]
[368585184,1751217043772,-1114.44,0.00019467,2]
[368585186,1751217043781,-663.87,0.00019467,2]
[368585188,1751217043791,-3615.32,0.00019467,2]
[368585190,1751217043800,-753.48,0.00019467,2]
[368585192,1751217043810,-460.0,0.00019468,2]
[368585194,1751217043819,-460.0,0.00019468,2]
[368585196,1751217043829,-460.0,0.00019468,2]
[368585198,1751217043839,-460.0,0.00019468,2]
[368585200,1751217043848,-460.0,0.00019468,2]
[368585202,1751217043858,-504.71,0.00019468,2]
[368585204,1751217043868,-506.6,0.00019468,2]
[368585206,1751217043877,-460.0,0.00019468,2]
[368585208,1751217043886,-460.0,0.00019468,2]
[368585210,1751217043896,-460.0,0.00019468,2]
[368585212,1751217043905,-460.0,0.00019468,2]
[368585214,1751217043915,-460.0,0.00019483,2]
[368585216,1751217043924,-1092.7,0.00019483,2]
[368585218,1751217043933,-460.0,0.00019483,2]
[368585220,1751217043942,-579.58,0.00019484,2]
[368585222,1751217043951,-460.0,0.00019484,2]
[368585223,1751217043961,-906.17,0.00019486,2]
[368585224,1751217043970,-3965.97106955,0.00019521,2]
[368585225,1751217043979,-1000.0,0.00019629,2]
[368585226,1751217043988,-500.0,0.00019629,2]
[368585227,1751217043998,-501.8969566,0.00019629,2]
[368585228,1751217044007,-1000.0,0.00019629,2]
[368585229,1751217044016,-1000.0,0.00019629,2]
[368585230,1751217044026,-977.70593546,0.00019635,2]
[368585231,1751217044035,-3965.97106955,0.00019728,2]
[368585232,1751217044045,-460.0,0.00019738,2]
[368585233,1751217044054,-460.0,0.00019738,2]
[368585234,1751217044065,-460.0,0.00019738,2]
[368585236,1751217044074,-1453.38,0.00019738,2]
[368585238,1751217044084,-2141.24,0.00019739,2]
[368585240,1751217044093,-494.7,0.00019739,2]
[368585242,1751217044103,-460.0,0.00019739,2]
[368585244,1751217044112,-2351.68,0.00019739,2]
[368585246,1751217044121,-470.09,0.00019739,2]
[368585248,1751217044131,-468.63,0.00019739,2]
[368585250,1751217044141,-460.0,0.00019739,2]
[368585252,1751217044150,-460.0,0.00019739,2]
[368585254,1751217044159,-386.32823257,0.00019739,2]
[368585256,1751217044168,-844.86,0.00019739,2]
[368585258,1751217044177,-2091.43,0.00019739,2]
[368585260,1751217044190,-460.0,0.00019739,2]
[368585262,1751217044199,-460.0,0.00019739,2]
[368585264,1751217044208,-2461.02,0.00019739,2]
[368585266,1751217044218,-2527.06,0.00019739,2]
[368585268,1751217044228,-460.0,0.00019739,2]
[368585270,1751217044237,-1239.26,0.00019739,2]
[368585272,1751217044246,-372.67133626,0.00019739,2]
[368585274,1751217044256,-460.0,0.00019739,2]
[368585276,1751217044265,-834.91,0.00019739,2]
[368585278,1751217044275,-460.0,0.00019739,2]
[368585280,1751217044284,-460.0,0.00019739,2]
[368585282,1751217044293,-460.0,0.00019739,2]
[368585284,1751217044303,-460.0,0.00019739,2]
[368585286,1751217044313,-460.0,0.00019739,2]
[368585288,1751217044323,-460.0,0.00019739,2]
[368585290,1751217044333,-460.0,0.00019739,2]
[368585292,1751217044342,-460.0,0.00019739,2]
[368585294,1751217044351,-588.27,0.00019739,2]
[368585296,1751217044361,-460.0,0.00019739,2]
[368585298,1751217044372,-460.0,0.00019739,2]
[368585300,1751217044381,-460.0,0.0001974,2]
[368585302,1751217044391,-460.0,0.0001974,2]
[368585304,1751217044400,-540.86,0.0001974,2]
[368585306,1751217044410,-460.0,0.0001974,2]
[368585308,1751217044419,-2759.24,0.0001974,2]
[368585310,1751217044428,-460.0,0.0001974,2]
[368585312,1751217044438,-902.98,0.0001974,2]
[368585314,1751217044447,-632.28,0.0001974,2]
[368585316,1751217044458,-460.0,0.0001974,2]
[368585318,1751217044468,-513.78,0.0001974,2]
[368585320,1751217044477,-610.19,0.0001974,2]
[368585323,1751217044487,-1064.43,0.0001974,2]
[368585325,1751217044497,-973.55,0.00019741,2]
[368585327,1751217044506,-460.0,0.00019741,2]
[368585329,1751217044515,-460.0,0.00019741,2]
[368585331,1751217044524,-2074.91,0.00019741,2]
[368585333,1751217044536,-460.0,0.00019741,2]
[368585335,1751217044546,-781.6,0.00019741,2]
[368585337,1751217044555,-1114.44,0.00019741,2]
[368585339,1751217044564,-663.87,0.00019741,2]
[368585341,1751217044574,-3615.32,0.00019741,2]
[368585343,1751217044583,-753.48,0.00019741,2]
[368585345,1751217044593,-511.83476692,0.00019742,2]
[368585347,1751217044603,-460.0,0.00019742,2]
[368585349,1751217044612,-226.01249887,0.00019742,2]
[368585351,1751217044622,-460.0,0.00019742,2]
[368585353,1751217044631,-504.71,0.00019742,2]
[368585355,1751217044640,-506.6,0.00019742,2]
[368585357,1751217044649,-460.0,0.00019742,2]
[368585359,1751217044659,-460.0,0.00019742,2]
[368585361,1751217044668,-460.0,0.00019742,2]
[368585363,1751217044677,-460.0,0.00019742,2]
[368585365,1751217044687,-4279.92,0.00019748,3]
[368585367,1751217044697,-2139.96,0.00019748,3]
[368585369,1751217044707,-1069.98,0.00019748,3]
[368585371,1751217044716,-535.0,0.00019748,3]
[368585373,1751217044725,-12567.05932091,0.00019748,3]
[368585375,1751217044734,-847.31290578,0.00019748,3]
[368585377,1751217044743,-213.82031328,0.00019748,3]
[368585379,1751217044752,-524.48349001,0.00019748,3]
[368585381,1751217044762,-484.0,0.00019755,2]
[368585383,1751217044771,-420.49560583,0.00019757,2]
[368585385,1751217044780,-1092.7,0.00019757,2]
[368585387,1751217044789,-460.0,0.00019757,2]
[368585389,1751217044799,-579.58,0.00019758,2]
[368585391,1751217044808,-250.72008309,0.00019758,2]
[368585393,1751217044817,-906.17,0.0001976,2]
[368585395,1751217044826,-3965.97106955,0.00019934,2]
[368585397,1751217044835,-154.11,0.0002,2]
[368585399,1751217044845,-5000.0,0.0002,2]
[368585401,1751217044855,-432.35467274,0.0002,2]
[368585403,1751217044864,-300.0,0.0002,2]
[368585405,1751217044874,-160.0,0.0002,3]
[368585407,1751217044884,-460.0,0.00020012,2]
[368585409,1751217044894,-460.0,0.00020012,2]
[368585414,1751217044933,-460.0,0.00020012,2]
[368585417,1751217044943,-1453.38,0.00020012,2]
[368585419,1751217044952,-2141.24,0.00020013,2]
[368585421,1751217044961,-494.7,0.00020013,2]
[368585423,1751217044970,-460.0,0.00020013,2]
[368585425,1751217044979,-2351.68,0.00020013,2]
[368585427,1751217044989,-470.09,0.00020013,2]
[368585429,1751217044998,-468.63,0.00020013,2]
[368585431,1751217045007,-460.0,0.00020013,2]
[368585433,1751217045016,-460.0,0.00020013,2]
[368585435,1751217045025,-844.86,0.00020013,2]
[368585437,1751217045033,-2091.43,0.00020013,2]
[368585439,1751217045043,-460.0,0.00020013,2]
[368585441,1751217045052,-460.0,0.00020013,2]
[368585443,1751217045062,-2461.02,0.00020013,2]
[368585445,1751217045071,-2527.06,0.00020013,2]
[368585447,1751217045079,-460.0,0.00020013,2]
[368585449,1751217045089,-1239.26,0.00020013,2]
[368585450,1751217045098,-460.0,0.00020013,2]
[368585453,1751217045108,-834.91,0.00020013,2]
[368585454,1751217045117,-460.0,0.00020013,2]
[368585456,1751217045126,-460.0,0.00020013,2]
[368585458,1751217045135,-460.0,0.00020013,2]
[368585460,1751217045145,-460.0,0.00020013,2]
[368585462,1751217045154,-460.0,0.00020013,2]
[368585464,1751217045163,-460.0,0.00020013,2]
[368585466,1751217045171,-460.0,0.00020013,2]
[368585468,1751217045184,-460.0,0.00020013,2]
[368585470,1751217045193,-588.27,0.00020013,2]
[368585472,1751217045202,-460.0,0.00020013,2]
[368585474,1751217045211,-460.0,0.00020013,2]
[368585476,1751217045220,-460.0,0.00020014,2]